[Event "December 12 Late 2023"]
[Site "https://www.chess.com"]
[Date "2023.12.12"]
[Round "5"]
[White "Kniazev, Igor"]
[Black "Minina, Veronika"]
[Result "0-1"]
[Board "142"]
[TimeControl "180+1"]
[WhiteFideId "4136349"]
[BlackFideId "4174780"]
[WhiteElo "2086"]
[BlackElo "2247"]
[WhiteTeam "RUS"]
[BlackTeam "RUS"]
[WhiteClock "0:00:47"]
[BlackClock "0:01:04"]

1. e4 {[%clk 0:03:00]}  c5 {[%clk 0:02:59]} 2. c3 {[%clk 0:02:59]}  d5 {[%clk 0:02:58]} 3. exd5 {[%clk 0:02:59]}  Qxd5 {[%clk 0:02:59]} 4. Nf3 {[%clk 0:02:58]}  Nc6 {[%clk 0:02:56]} 5. d4 {[%clk 0:02:57]}  Bg4 {[%clk 0:02:55]} 6. Be2 {[%clk 0:02:57]}  e6 {[%clk 0:02:55]} 7. O-O {[%clk 0:02:47]}  Nf6 {[%clk 0:02:52]} 8. Be3 {[%clk 0:02:45]}  cxd4 {[%clk 0:02:46]} 9. Nxd4 {[%clk 0:02:40]}  Bxe2 {[%clk 0:02:44]} 10. Nxe2 {[%clk 0:02:36]}  Be7 {[%clk 0:02:42]} 11. Nf4 {[%clk 0:02:27]}  Qb5 {[%clk 0:02:30]} 12. Na3 {[%clk 0:02:24]}  Qxb2 {[%clk 0:02:25]} 13. Nc4 {[%clk 0:02:20]}  Qxc3 {[%clk 0:02:21]} 14. Rc1 {[%clk 0:02:01]}  Qb4 {[%clk 0:02:21]} 15. Rb1 {[%clk 0:01:59]}  Qxc4 {[%clk 0:02:21]} 16. Rxb7 {[%clk 0:01:58]}  O-O {[%clk 0:02:16]} 17. Qf3 {[%clk 0:01:50]}  Ne5 {[%clk 0:02:03]} 18. Qg3 {[%clk 0:01:41]}  Ne4 {[%clk 0:01:53]} 19. Qh3 {[%clk 0:01:33]}  Bf6 {[%clk 0:01:48]} 20. Rc1 {[%clk 0:01:20]}  Qxa2 {[%clk 0:01:45]} 21. Nh5 {[%clk 0:01:15]}  Rab8 {[%clk 0:01:41]} 22. Rxb8 {[%clk 0:00:53]}  Rxb8 {[%clk 0:01:40]} 23. Qf3 {[%clk 0:00:47]}  Nxf3+ {[%clk 0:01:04]} 0-1

[Event "December 12 Late 2023"]
[Site "https://www.chess.com"]
[Date "2023.12.12"]
[Round "6"]
[White "Martinez Alcantara, Jose Eduardo"]
[Black "Hakobyan, Aram"]
[Result "0-1"]
[Board "2"]
[TimeControl "180+1"]
[WhiteFideId "3805662"]
[BlackFideId "13306677"]
[WhiteElo "3071"]
[BlackElo "3016"]
[WhiteTeam "PER"]
[BlackTeam "ARM"]
[WhiteClock "0:00:00"]
[BlackClock "0:00:07"]

1. e4 {[%clk 0:03:00]}  e5 {[%clk 0:03:00]} 2. Nf3 {[%clk 0:03:01]}  Nc6 {[%clk 0:03:00]} 3. Nc3 {[%clk 0:03:01]}  Nf6 {[%clk 0:03:00]} 4. h3 {[%clk 0:03:02]}  Bb4 {[%clk 0:02:57]} 5. a3 {[%clk 0:03:01]}  Bxc3 {[%clk 0:02:57]} 6. dxc3 {[%clk 0:03:02]}  Nxe4 {[%clk 0:02:55]} 7. Nxe5 {[%clk 0:03:03]}  Nxe5 {[%clk 0:02:38]} 8. Qd4 {[%clk 0:03:02]}  O-O {[%clk 0:02:04]} 9. Qxe4 {[%clk 0:03:01]}  d5 {[%clk 0:01:58]} 10. Qd4 {[%clk 0:02:59]}  Re8 {[%clk 0:01:53]} 11. Be3 {[%clk 0:02:59]}  Nc4 {[%clk 0:01:43]} 12. Bxc4 {[%clk 0:02:58]}  dxc4 {[%clk 0:01:43]} 13. Qxc4 {[%clk 0:02:57]}  Be6 {[%clk 0:01:39]} 14. Qd4 {[%clk 0:02:43]}  Qxd4 {[%clk 0:01:31]} 15. cxd4 {[%clk 0:02:44]}  Bd5 {[%clk 0:01:32]} 16. O-O {[%clk 0:02:40]}  Re6 {[%clk 0:01:29]} 17. Rfe1 {[%clk 0:02:12]}  Rae8 {[%clk 0:01:26]} 18. b3 {[%clk 0:02:05]}  Rg6 {[%clk 0:01:04]} 19. g3 {[%clk 0:01:58]}  Rge6 {[%clk 0:01:02]} 20. c4 {[%clk 0:01:54]}  Bf3 {[%clk 0:01:02]} 21. g4 {[%clk 0:01:29]}  h5 {[%clk 0:00:56]} 22. gxh5 {[%clk 0:01:22]}  Bxh5 {[%clk 0:00:57]} 23. Kh2 {[%clk 0:01:20]}  Re4 {[%clk 0:00:34]} 24. d5 {[%clk 0:00:56]}  f5 {[%clk 0:00:31]} 25. Bd2 {[%clk 0:00:51]}  Rxe1 {[%clk 0:00:25]} 26. Bxe1 {[%clk 0:00:47]}  f4 {[%clk 0:00:20]} 27. Bc3 {[%clk 0:00:26]}  Re2 {[%clk 0:00:17]} 28. Bd4 {[%clk 0:00:25]}  b6 {[%clk 0:00:14]} 29. Rg1 {[%clk 0:00:22]}  g6 {[%clk 0:00:14]} 30. Kg2 {[%clk 0:00:13]}  Kf7 {[%clk 0:00:14]} 31. a4 {[%clk 0:00:13]}  a5 {[%clk 0:00:14]} 32. c5 {[%clk 0:00:14]}  bxc5 {[%clk 0:00:14]} 33. Bxc5 {[%clk 0:00:15]}  Re5 {[%clk 0:00:14]} 34. b4 {[%clk 0:00:11]}  Rxd5 {[%clk 0:00:14]} 35. Rc1 {[%clk 0:00:04]}  axb4 {[%clk 0:00:06]} 36. Bxb4 {[%clk 0:00:05]}  Rd3 {[%clk 0:00:03]} 37. Rxc7+ {[%clk 0:00:04]}  Ke6 {[%clk 0:00:04]} 38. Rc6+ {[%clk 0:00:04]}  Kf5 {[%clk 0:00:04]} 39. Rc5+ {[%clk 0:00:05]}  Ke6 {[%clk 0:00:04]} 40. Rb5 {[%clk 0:00:02]}  Bf3+ {[%clk 0:00:04]} 41. Kh2 {[%clk 0:00:01]}  Rd1 {[%clk 0:00:05]} 42. Rb6+ {[%clk 0:00:02]}  Kf5 {[%clk 0:00:06]} 43. Rb5+ {[%clk 0:00:02]}  Ke6 {[%clk 0:00:06]} 44. Rb6+ {[%clk 0:00:00]}  Kf7 {[%clk 0:00:07]} 0-1

[Event "December 12 Late 2023"]
[Site "https://www.chess.com"]
[Date "2023.12.12"]
[Round "6"]
[White "Erigaisi Arjun"]
[Black "Paravyan, David"]
[Result "1/2-1/2"]
[Board "5"]
[TimeControl "180+1"]
[WhiteFideId "35009192"]
[BlackFideId "4194985"]
[WhiteElo "3099"]
[BlackElo "3032"]
[WhiteTeam "IND"]
[BlackTeam "FID"]
[WhiteClock "0:01:00"]
[BlackClock "0:00:06"]

1. b3 {[%clk 0:03:00]}  e5 {[%clk 0:02:57]} 2. e3 {[%clk 0:03:01]}  d5 {[%clk 0:02:57]} 3. Bb2 {[%clk 0:03:02]}  Bd6 {[%clk 0:02:40]} 4. f4 {[%clk 0:03:01]}  exf4 {[%clk 0:02:34]} 5. exf4 {[%clk 0:02:55]}  Nf6 {[%clk 0:02:24]} 6. Qe2+ {[%clk 0:02:38]}  Qe7 {[%clk 0:02:12]} 7. Bxf6 {[%clk 0:02:36]}  gxf6 {[%clk 0:02:13]} 8. Qxe7+ {[%clk 0:02:33]}  Kxe7 {[%clk 0:02:13]} 9. g3 {[%clk 0:02:30]}  h5 {[%clk 0:02:14]} 10. Bh3 {[%clk 0:02:29]}  Be6 {[%clk 0:02:10]} 11. Nc3 {[%clk 0:02:24]}  c6 {[%clk 0:01:45]} 12. Kf2 {[%clk 0:02:23]}  h4 {[%clk 0:01:00]} 13. Re1 {[%clk 0:02:22]}  Bc5+ {[%clk 0:01:00]} 14. Kg2 {[%clk 0:02:21]}  Kd6 {[%clk 0:00:54]} 15. Na4 {[%clk 0:01:44]}  Bxg1 {[%clk 0:00:51]} 16. Rexg1 {[%clk 0:01:43]}  Bxh3+ {[%clk 0:00:48]} 17. Kxh3 {[%clk 0:01:44]}  hxg3+ {[%clk 0:00:48]} 18. Kxg3 {[%clk 0:01:45]}  Nd7 {[%clk 0:00:45]} 19. Nc3 {[%clk 0:01:42]}  Nc5 {[%clk 0:00:44]} 20. h4 {[%clk 0:01:38]}  Rh5 {[%clk 0:00:43]} 21. Kf3 {[%clk 0:01:30]}  Rah8 {[%clk 0:00:41]} 22. Rg7 {[%clk 0:01:29]}  Ke7 {[%clk 0:00:36]} 23. Rg4 {[%clk 0:01:27]}  Ne6 {[%clk 0:00:31]} 24. Ne2 {[%clk 0:01:19]}  f5 {[%clk 0:00:30]} 25. Rgg1 {[%clk 0:01:17]}  Rxh4 {[%clk 0:00:31]} 26. Rxh4 {[%clk 0:01:18]}  Rxh4 {[%clk 0:00:31]} 27. c3 {[%clk 0:01:19]}  Kf8 {[%clk 0:00:23]} 28. b4 {[%clk 0:01:18]}  b6 {[%clk 0:00:19]} 29. a4 {[%clk 0:01:18]}  Rh8 {[%clk 0:00:07]} 30. Ng3 {[%clk 0:01:16]}  Rh4 {[%clk 0:00:07]} 31. Ne2 {[%clk 0:01:17]}  c5 {[%clk 0:00:06]} 32. bxc5 {[%clk 0:01:15]}  bxc5 {[%clk 0:00:07]} 33. Rb1 {[%clk 0:01:15]}  d4 {[%clk 0:00:06]} 34. cxd4 {[%clk 0:01:13]}  cxd4 {[%clk 0:00:07]} 35. d3 {[%clk 0:01:13]}  Rh3+ {[%clk 0:00:06]} 36. Ng3 {[%clk 0:01:13]}  Kg7 {[%clk 0:00:04]} 37. Rb7 {[%clk 0:01:08]}  Kg6 {[%clk 0:00:04]} 38. Rxa7 {[%clk 0:01:07]}  Rh4 {[%clk 0:00:05]} 39. Ne2 {[%clk 0:01:07]}  Rh3+ {[%clk 0:00:05]} 40. Ng3 {[%clk 0:01:07]}  Rh4 {[%clk 0:00:05]} 41. Ne2 {[%clk 0:01:00]}  Rh3+ {[%clk 0:00:06]} 42. Ng3 {[%clk 0:01:00]} 1/2-1/2

[Event "December 12 Late 2023"]
[Site "https://www.chess.com"]
[Date "2023.12.12"]
[Round "6"]
[White "Smirnov, Anton"]
[Black "Pranav, V"]
[Result "1-0"]
[Board "6"]
[TimeControl "180+1"]
[WhiteFideId "3208923"]
[BlackFideId "25060783"]
[WhiteElo "2975"]
[BlackElo "3056"]
[WhiteTeam "AUS"]
[BlackTeam "IND"]
[WhiteClock "0:00:13"]
[BlackClock "0:00:00"]

1. e4 {[%clk 0:03:00]}  e5 {[%clk 0:02:59]} 2. Nf3 {[%clk 0:03:01]}  Nc6 {[%clk 0:03:00]} 3. Bb5 {[%clk 0:03:01]}  a6 {[%clk 0:03:00]} 4. Bxc6 {[%clk 0:03:01]}  dxc6 {[%clk 0:03:00]} 5. O-O {[%clk 0:03:02]}  Qf6 {[%clk 0:02:54]} 6. d4 {[%clk 0:03:02]}  exd4 {[%clk 0:02:55]} 7. Bg5 {[%clk 0:03:03]}  Qg6 {[%clk 0:02:54]} 8. Qxd4 {[%clk 0:03:02]}  Be6 {[%clk 0:02:46]} 9. Bf4 {[%clk 0:02:56]}  Nf6 {[%clk 0:02:21]} 10. Nc3 {[%clk 0:02:46]}  Rc8 {[%clk 0:02:05]} 11. Rad1 {[%clk 0:02:33]}  Be7 {[%clk 0:02:02]} 12. Qa7 {[%clk 0:02:09]}  O-O {[%clk 0:01:44]} 13. Qxb7 {[%clk 0:02:08]}  Nxe4 {[%clk 0:01:44]} 14. Qxc6 {[%clk 0:01:59]}  Nxc3 {[%clk 0:01:29]} 15. Qxc3 {[%clk 0:01:56]}  h6 {[%clk 0:01:27]} 16. b3 {[%clk 0:01:49]}  c5 {[%clk 0:01:13]} 17. Bd6 {[%clk 0:01:43]}  Bf6 {[%clk 0:01:06]} 18. Be5 {[%clk 0:01:29]}  Be7 {[%clk 0:01:05]} 19. Rfe1 {[%clk 0:01:15]}  Rfd8 {[%clk 0:01:02]} 20. Bg3 {[%clk 0:01:11]}  Rxd1 {[%clk 0:00:47]} 21. Rxd1 {[%clk 0:01:10]}  c4 {[%clk 0:00:47]} 22. b4 {[%clk 0:01:05]}  Qh5 {[%clk 0:00:45]} 23. a3 {[%clk 0:01:02]}  Bf6 {[%clk 0:00:44]} 24. Be5 {[%clk 0:01:00]}  Bxe5 {[%clk 0:00:28]} 25. Qxe5 {[%clk 0:01:00]}  Qg6 {[%clk 0:00:28]} 26. Nd4 {[%clk 0:00:51]}  Rd8 {[%clk 0:00:28]} 27. c3 {[%clk 0:00:49]}  Bg4 {[%clk 0:00:16]} 28. Re1 {[%clk 0:00:48]}  Qd3 {[%clk 0:00:12]} 29. Qg3 {[%clk 0:00:46]}  Bh5 {[%clk 0:00:08]} 30. Qh4 {[%clk 0:00:40]}  Rd5 {[%clk 0:00:07]} 31. Re8+ {[%clk 0:00:36]}  Kh7 {[%clk 0:00:07]} 32. Qe4+ {[%clk 0:00:30]}  Bg6 {[%clk 0:00:06]} 33. Qe1 {[%clk 0:00:30]}  Rxd4 {[%clk 0:00:03]} 34. cxd4 {[%clk 0:00:20]}  c3 {[%clk 0:00:03]} 35. Qc1 {[%clk 0:00:20]}  c2 {[%clk 0:00:02]} 36. Re1 {[%clk 0:00:21]}  Qxd4 {[%clk 0:00:03]} 37. Qe3 {[%clk 0:00:20]}  Qc4 {[%clk 0:00:01]} 38. h3 {[%clk 0:00:20]}  h5 {[%clk 0:00:02]} 39. Kh2 {[%clk 0:00:20]}  Qc7+ {[%clk 0:00:02]} 40. Kg1 {[%clk 0:00:19]}  Qc4 {[%clk 0:00:02]} 41. Rc1 {[%clk 0:00:15]}  Qc6 {[%clk 0:00:02]} 42. f3 {[%clk 0:00:15]}  Qc4 {[%clk 0:00:02]} 43. Kf2 {[%clk 0:00:16]}  Qh4+ {[%clk 0:00:03]} 44. Ke2 {[%clk 0:00:14]}  Qg3 {[%clk 0:00:03]} 45. Kf1 {[%clk 0:00:12]}  Qc7 {[%clk 0:00:03]} 46. Qd4 {[%clk 0:00:12]}  Qg3 {[%clk 0:00:02]} 47. Qc4 {[%clk 0:00:10]}  Qh2 {[%clk 0:00:02]} 48. Rxc2 {[%clk 0:00:10]}  Qh1+ {[%clk 0:00:02]} 49. Kf2 {[%clk 0:00:10]}  Bxc2 {[%clk 0:00:02]} 50. Qxc2+ {[%clk 0:00:11]}  g6 {[%clk 0:00:02]} 51. Qc4 {[%clk 0:00:12]}  Kg8 {[%clk 0:00:03]} 52. Qxa6 {[%clk 0:00:12]}  Qc1 {[%clk 0:00:04]} 53. Qd3 {[%clk 0:00:12]}  Qb2+ {[%clk 0:00:04]} 54. Kg1 {[%clk 0:00:12]}  Qc1+ {[%clk 0:00:04]} 55. Kh2 {[%clk 0:00:13]}  Qf4+ {[%clk 0:00:04]} 56. g3 {[%clk 0:00:13]}  Qc1 {[%clk 0:00:05]} 57. f4 {[%clk 0:00:13]}  Qb2+ {[%clk 0:00:04]} 58. Kg1 {[%clk 0:00:13]}  Kg7 {[%clk 0:00:03]} 59. h4 {[%clk 0:00:13]}  f6 {[%clk 0:00:02]} 60. Kf1 {[%clk 0:00:14]}  g5 {[%clk 0:00:02]} 61. fxg5 {[%clk 0:00:13]}  fxg5 {[%clk 0:00:03]} 62. hxg5 {[%clk 0:00:14]}  Qh2 {[%clk 0:00:02]} 63. Qf3 {[%clk 0:00:14]}  Qh3+ {[%clk 0:00:01]} 64. Ke2 {[%clk 0:00:14]}  Qh2+ {[%clk 0:00:01]} 65. Kd3 {[%clk 0:00:14]}  Qa2 {[%clk 0:00:02]} 66. Kd4 {[%clk 0:00:13]}  Qd2+ {[%clk 0:00:02]} 67. Kc5 {[%clk 0:00:13]}  Qxg5+ {[%clk 0:00:02]} 68. Kb6 {[%clk 0:00:13]}  Qd8+ {[%clk 0:00:02]} 69. Ka6 {[%clk 0:00:13]}  Qd6+ {[%clk 0:00:02]} 70. Ka5 {[%clk 0:00:13]}  Qd8+ {[%clk 0:00:02]} 71. Ka4 {[%clk 0:00:13]}  Qd7+ {[%clk 0:00:02]} 72. b5 {[%clk 0:00:13]}  Qd4+ {[%clk 0:00:02]} 73. Kb3 {[%clk 0:00:14]}  Kg6 {[%clk 0:00:00]} 74. a4 {[%clk 0:00:13]} 1-0

[Event "December 12 Late 2023"]
[Site "https://www.chess.com"]
[Date "2023.12.12"]
[Round "6"]
[White "Yoo, Christopher Woojin"]
[Black "Andreikin, Dmitry"]
[Result "0-1"]
[Board "7"]
[TimeControl "180+1"]
[WhiteFideId "30909694"]
[BlackFideId "4158814"]
[WhiteElo "3011"]
[BlackElo "3102"]
[WhiteTeam "USA"]
[BlackTeam "FID"]
[WhiteClock "0:00:06"]
[BlackClock "0:00:43"]

1. e4 {[%clk 0:03:00]}  e5 {[%clk 0:02:58]} 2. Nf3 {[%clk 0:03:01]}  Nf6 {[%clk 0:02:58]} 3. Nxe5 {[%clk 0:03:00]}  d6 {[%clk 0:02:58]} 4. Nf3 {[%clk 0:02:51]}  Nxe4 {[%clk 0:02:58]} 5. d4 {[%clk 0:02:51]}  d5 {[%clk 0:02:58]} 6. Bd3 {[%clk 0:02:51]}  Bd6 {[%clk 0:02:58]} 7. O-O {[%clk 0:02:50]}  O-O {[%clk 0:02:58]} 8. c4 {[%clk 0:02:51]}  c6 {[%clk 0:02:58]} 9. Qc2 {[%clk 0:02:51]}  h6 {[%clk 0:02:51]} 10. Re1 {[%clk 0:02:33]}  Re8 {[%clk 0:02:48]} 11. Nbd2 {[%clk 0:02:30]}  Nf6 {[%clk 0:02:37]} 12. Rxe8+ {[%clk 0:02:24]}  Qxe8 {[%clk 0:02:37]} 13. c5 {[%clk 0:02:25]}  Bc7 {[%clk 0:02:37]} 14. h3 {[%clk 0:02:19]}  Nbd7 {[%clk 0:02:31]} 15. b4 {[%clk 0:02:17]}  Nf8 {[%clk 0:02:29]} 16. Bb2 {[%clk 0:02:14]}  Ne6 {[%clk 0:02:29]} 17. Re1 {[%clk 0:02:14]}  Qf8 {[%clk 0:02:29]} 18. Ne5 {[%clk 0:02:13]}  Nf4 {[%clk 0:02:21]} 19. Bf1 {[%clk 0:02:07]}  a6 {[%clk 0:02:20]} 20. a4 {[%clk 0:01:55]}  Be6 {[%clk 0:02:18]} 21. Bc1 {[%clk 0:01:41]}  Qc8 {[%clk 0:02:14]} 22. g4 {[%clk 0:01:22]}  h5 {[%clk 0:01:50]} 23. Ndf3 {[%clk 0:01:20]}  Nxh3+ {[%clk 0:01:46]} 24. Bxh3 {[%clk 0:01:19]}  hxg4 {[%clk 0:01:46]} 25. Nxg4 {[%clk 0:01:11]}  Bxg4 {[%clk 0:01:46]} 26. Bg2 {[%clk 0:01:07]}  Bf5 {[%clk 0:01:38]} 27. Qd1 {[%clk 0:01:05]}  Be4 {[%clk 0:01:37]} 28. Ne5 {[%clk 0:01:02]}  Qf5 {[%clk 0:01:33]} 29. Qe2 {[%clk 0:00:26]}  Bxg2 {[%clk 0:01:22]} 30. Kxg2 {[%clk 0:00:25]}  Re8 {[%clk 0:01:23]} 31. Qf3 {[%clk 0:00:25]}  Qc2 {[%clk 0:01:11]} 32. Bg5 {[%clk 0:00:21]}  Bxe5 {[%clk 0:01:04]} 33. Bxf6 {[%clk 0:00:20]}  Qg6+ {[%clk 0:00:58]} 34. Kf1 {[%clk 0:00:15]}  Qxf6 {[%clk 0:00:58]} 35. Qxf6 {[%clk 0:00:12]}  gxf6 {[%clk 0:00:59]} 36. f4 {[%clk 0:00:12]}  Kg7 {[%clk 0:00:59]} 37. fxe5 {[%clk 0:00:11]}  fxe5 {[%clk 0:00:58]} 38. dxe5 {[%clk 0:00:12]}  Kg6 {[%clk 0:00:58]} 39. Kg2 {[%clk 0:00:11]}  Re7 {[%clk 0:00:56]} 40. b5 {[%clk 0:00:08]}  axb5 {[%clk 0:00:54]} 41. axb5 {[%clk 0:00:09]}  Kf5 {[%clk 0:00:54]} 42. bxc6 {[%clk 0:00:09]}  bxc6 {[%clk 0:00:54]} 43. Kf3 {[%clk 0:00:10]}  Rxe5 {[%clk 0:00:52]} 44. Ra1 {[%clk 0:00:10]}  d4 {[%clk 0:00:51]} 45. Ra7 {[%clk 0:00:10]}  Rxc5 {[%clk 0:00:49]} 46. Rxf7+ {[%clk 0:00:10]}  Ke5 {[%clk 0:00:47]} 47. Ke2 {[%clk 0:00:09]}  Rc2+ {[%clk 0:00:45]} 48. Kd3 {[%clk 0:00:09]}  Rc3+ {[%clk 0:00:46]} 49. Kd2 {[%clk 0:00:09]}  c5 {[%clk 0:00:46]} 50. Rd7 {[%clk 0:00:06]}  Ke6 {[%clk 0:00:45]} 51. Rd8 {[%clk 0:00:06]}  Ke5 {[%clk 0:00:44]} 52. Rd7 {[%clk 0:00:06]}  Ke4 {[%clk 0:00:45]} 53. Re7+ {[%clk 0:00:06]}  Kd5 {[%clk 0:00:45]} 54. Ra7 {[%clk 0:00:07]}  Rh3 {[%clk 0:00:44]} 55. Ra8 {[%clk 0:00:07]}  Rh2+ {[%clk 0:00:44]} 56. Kd1 {[%clk 0:00:07]}  c4 {[%clk 0:00:44]} 57. Re8 {[%clk 0:00:05]}  c3 {[%clk 0:00:43]} 58. Kc1 {[%clk 0:00:05]}  Kc4 {[%clk 0:00:44]} 59. Rg8 {[%clk 0:00:05]}  Rh1+ {[%clk 0:00:43]} 60. Kc2 {[%clk 0:00:06]}  d3# {[%clk 0:00:43]} 0-1

[Event "December 12 Late 2023"]
[Site "https://www.chess.com"]
[Date "2023.12.12"]
[Round "6"]
[White "Gorovets, Andrey"]
[Black "Fedoseev, Vladimir"]
[Result "1-0"]
[Board "9"]
[TimeControl "180+1"]
[WhiteFideId "13504037"]
[BlackFideId "24130737"]
[WhiteElo "2836"]
[BlackElo "3048"]
[WhiteTeam "BLR"]
[BlackTeam "SLO"]
[WhiteClock "0:00:09"]
[BlackClock "0:00:00"]

1. Nf3 {[%clk 0:03:00]}  d5 {[%clk 0:02:59]} 2. g3 {[%clk 0:03:01]}  Nd7 {[%clk 0:02:59]} 3. d4 {[%clk 0:02:58]}  Nb6 {[%clk 0:02:59]} 4. Nc3 {[%clk 0:02:57]}  Nf6 {[%clk 0:02:58]} 5. Bg2 {[%clk 0:02:51]}  c6 {[%clk 0:02:58]} 6. O-O {[%clk 0:02:45]}  h6 {[%clk 0:02:58]} 7. Qd3 {[%clk 0:02:40]}  g6 {[%clk 0:02:56]} 8. e4 {[%clk 0:02:39]}  dxe4 {[%clk 0:02:51]} 9. Nxe4 {[%clk 0:02:40]}  Nxe4 {[%clk 0:02:51]} 10. Qxe4 {[%clk 0:02:41]}  Bf5 {[%clk 0:02:51]} 11. Qe5 {[%clk 0:02:38]}  Rg8 {[%clk 0:02:37]} 12. Qe2 {[%clk 0:02:36]}  Bg7 {[%clk 0:02:38]} 13. c4 {[%clk 0:02:33]}  g5 {[%clk 0:02:32]} 14. Rd1 {[%clk 0:02:31]}  e6 {[%clk 0:02:30]} 15. Ne5 {[%clk 0:02:27]}  Kf8 {[%clk 0:02:27]} 16. f4 {[%clk 0:02:22]}  Nd7 {[%clk 0:02:08]} 17. b3 {[%clk 0:02:08]}  Bf6 {[%clk 0:02:03]} 18. Qh5 {[%clk 0:01:51]}  Rg7 {[%clk 0:01:44]} 19. Qxh6 {[%clk 0:01:34]}  Nxe5 {[%clk 0:01:19]} 20. Ba3+ {[%clk 0:01:26]}  Be7 {[%clk 0:01:05]} 21. Bxe7+ {[%clk 0:01:11]}  Qxe7 {[%clk 0:01:04]} 22. Qh8+ {[%clk 0:01:08]}  Rg8 {[%clk 0:01:01]} 23. Qxe5 {[%clk 0:01:09]}  gxf4 {[%clk 0:00:59]} 24. Qxf4 {[%clk 0:01:09]}  Rd8 {[%clk 0:00:59]} 25. Rd2 {[%clk 0:00:55]}  Rg4 {[%clk 0:00:56]} 26. Qf2 {[%clk 0:00:55]}  Qg5 {[%clk 0:00:41]} 27. Rad1 {[%clk 0:00:52]}  b6 {[%clk 0:00:35]} 28. Rf1 {[%clk 0:00:48]}  Bg6 {[%clk 0:00:30]} 29. Bf3 {[%clk 0:00:38]}  Rh4 {[%clk 0:00:30]} 30. Bxc6 {[%clk 0:00:34]}  Kg7 {[%clk 0:00:26]} 31. Bg2 {[%clk 0:00:32]}  Rg4 {[%clk 0:00:25]} 32. h4 {[%clk 0:00:28]}  Qh6 {[%clk 0:00:21]} 33. Bf3 {[%clk 0:00:17]}  Rxg3+ {[%clk 0:00:14]} 34. Qxg3 {[%clk 0:00:18]}  Qxd2 {[%clk 0:00:15]} 35. h5 {[%clk 0:00:18]}  Qxd4+ {[%clk 0:00:15]} 36. Kg2 {[%clk 0:00:16]}  Qb2+ {[%clk 0:00:07]} 37. Rf2 {[%clk 0:00:16]}  Qa1 {[%clk 0:00:04]} 38. hxg6 {[%clk 0:00:15]}  Rg8 {[%clk 0:00:04]} 39. Bh5 {[%clk 0:00:13]}  f5 {[%clk 0:00:04]} 40. Re2 {[%clk 0:00:12]}  Kf6 {[%clk 0:00:04]} 41. Qh4+ {[%clk 0:00:11]}  Kg7 {[%clk 0:00:04]} 42. Qe7+ {[%clk 0:00:11]}  Kh6 {[%clk 0:00:04]} 43. Qh7+ {[%clk 0:00:11]}  Kg5 {[%clk 0:00:05]} 44. Qxg8 {[%clk 0:00:12]}  Qd4 {[%clk 0:00:00]} 45. Qxe6 {[%clk 0:00:09]} 1-0

[Event "December 12 Late 2023"]
[Site "https://www.chess.com"]
[Date "2023.12.12"]
[Round "6"]
[White "Volodin, Aleksandr"]
[Black "Salem, A.R. Saleh"]
[Result "0-1"]
[Board "11"]
[TimeControl "180+1"]
[WhiteFideId "4501950"]
[BlackFideId "9301348"]
[WhiteElo "2801"]
[BlackElo "2995"]
[WhiteTeam "EST"]
[BlackTeam "UAE"]
[WhiteClock "0:00:00"]
[BlackClock "0:00:07"]

1. d4 {[%clk 0:03:00]}  Nf6 {[%clk 0:02:55]} 2. c4 {[%clk 0:03:01]}  g6 {[%clk 0:02:53]} 3. g3 {[%clk 0:03:01]}  Bg7 {[%clk 0:02:49]} 4. Bg2 {[%clk 0:03:01]}  O-O {[%clk 0:02:50]} 5. Nf3 {[%clk 0:03:02]}  d6 {[%clk 0:02:50]} 6. O-O {[%clk 0:03:02]}  Nc6 {[%clk 0:02:51]} 7. d5 {[%clk 0:03:02]}  Na5 {[%clk 0:02:46]} 8. Nfd2 {[%clk 0:03:02]}  c5 {[%clk 0:02:43]} 9. Nc3 {[%clk 0:03:02]}  a6 {[%clk 0:02:41]} 10. Qc2 {[%clk 0:03:03]}  Rb8 {[%clk 0:02:41]} 11. b3 {[%clk 0:03:03]}  b5 {[%clk 0:02:39]} 12. Rb1 {[%clk 0:03:03]}  e5 {[%clk 0:02:26]} 13. Bb2 {[%clk 0:03:03]}  h5 {[%clk 0:02:19]} 14. Rbe1 {[%clk 0:02:15]}  h4 {[%clk 0:02:17]} 15. Nd1 {[%clk 0:02:15]}  h3 {[%clk 0:02:10]} 16. Bh1 {[%clk 0:02:15]}  Ng4 {[%clk 0:01:54]} 17. f3 {[%clk 0:02:00]}  Nh6 {[%clk 0:01:51]} 18. e4 {[%clk 0:01:51]}  f5 {[%clk 0:01:50]} 19. exf5 {[%clk 0:01:34]}  Nxf5 {[%clk 0:01:44]} 20. Bc3 {[%clk 0:01:28]}  bxc4 {[%clk 0:01:09]} 21. bxc4 {[%clk 0:01:27]}  Rb4 {[%clk 0:00:45]} 22. Bxb4 {[%clk 0:01:00]}  cxb4 {[%clk 0:00:45]} 23. Ne4 {[%clk 0:00:57]}  Nd4 {[%clk 0:00:44]} 24. Qd3 {[%clk 0:00:57]}  Nb7 {[%clk 0:00:36]} 25. Ne3 {[%clk 0:00:54]}  Bf5 {[%clk 0:00:34]} 26. Nxf5 {[%clk 0:00:51]}  gxf5 {[%clk 0:00:35]} 27. Nf2 {[%clk 0:00:47]}  Nc5 {[%clk 0:00:35]} 28. Qd2 {[%clk 0:00:41]}  a5 {[%clk 0:00:26]} 29. Nxh3 {[%clk 0:00:41]}  Na4 {[%clk 0:00:22]} 30. Bg2 {[%clk 0:00:40]}  Nc3 {[%clk 0:00:21]} 31. Kh1 {[%clk 0:00:35]}  Qc8 {[%clk 0:00:18]} 32. Ng5 {[%clk 0:00:27]}  Qxc4 {[%clk 0:00:16]} 33. Ne6 {[%clk 0:00:23]}  Nxe6 {[%clk 0:00:15]} 34. dxe6 {[%clk 0:00:24]}  Qxe6 {[%clk 0:00:16]} 35. f4 {[%clk 0:00:24]}  e4 {[%clk 0:00:17]} 36. Rc1 {[%clk 0:00:13]}  d5 {[%clk 0:00:17]} 37. a3 {[%clk 0:00:11]}  d4 {[%clk 0:00:17]} 38. axb4 {[%clk 0:00:11]}  axb4 {[%clk 0:00:18]} 39. Rfe1 {[%clk 0:00:10]}  Qf7 {[%clk 0:00:16]} 40. Bh3 {[%clk 0:00:06]}  d3 {[%clk 0:00:13]} 41. Qf2 {[%clk 0:00:04]}  Qd5 {[%clk 0:00:13]} 42. Qg2 {[%clk 0:00:03]}  b3 {[%clk 0:00:12]} 43. g4 {[%clk 0:00:02]}  d2 {[%clk 0:00:12]} 44. gxf5 {[%clk 0:00:02]}  dxc1=Q {[%clk 0:00:07]} 45. Rxc1 {[%clk 0:00:02]}  e3 {[%clk 0:00:07]} 46. f6 {[%clk 0:00:01]}  Qxg2+ {[%clk 0:00:06]} 47. Kxg2 {[%clk 0:00:02]}  Bxf6 {[%clk 0:00:07]} 48. Be6+ {[%clk 0:00:02]}  Kg7 {[%clk 0:00:07]} 49. Bxb3 {[%clk 0:00:03]}  Rb8 {[%clk 0:00:07]} 50. Bc4 {[%clk 0:00:02]}  Rb2+ {[%clk 0:00:07]} 51. Kf3 {[%clk 0:00:00]}  Bd4 {[%clk 0:00:07]} 0-1